bitfinex/quotes_ETHUSD_20240715
["timestamp","ask_amount","ask_price","bid_price","bid_amount"]
[1721026568362,0.55,3361.5,3361.1,0.0297685]
[1721026568561,0.55,3361.5,3360.6,5.67809]
[1721026569079,0.55,3361.5,3360.7,0.02991147]
[1721026569282,0.04569152,3361.4,3360.7,0.02991147]
[1721026569480,0.42860579,3361.4,3360.7,0.02991147]
[1721026569763,0.55,3361.3,3360.4,4.37824]
[1721026569979,0.55,3361.3,3360.8,0.02987572]
[1721026570267,2.3419,3361.2,3360.9,0.02983998]
[1721026570564,2.3419,3361.2,3360.5,3.0]
[1721026570565,0.55,3361.1,3360.6,2.67809]
[1721026570759,0.55,3361.1,3361.0,0.02980424]
[1721026571005,1.2047984,3362.0,3360.8,1.7]
[1721026571006,2.2507,3361.6,3360.8,1.7]
[1721026571305,9.5807,3362.1,3361.1,2.67767]
[1721026571501,2.2507,3362.1,3361.2,0.02973276]
[1721026571707,2.743436,3362.1,3361.2,0.02973276]
[1721026572097,0.04569152,3362.0,3361.2,0.02973276]
[1721026572316,0.59569152,3362.0,3361.2,0.02973276]
[1721026572616,0.55,3362.0,3361.0,2.67773]
[1721026572798,0.04569152,3361.9,3361.3,0.02969703]
[1721026572996,0.33391275,3361.8,3360.5,3.0]
[1721026573196,0.33391275,3361.8,3361.4,0.0296613]
[1721026573197,2.2507,3361.6,3361.4,0.0296613]
[1721026573388,2.72306152,3361.5,3361.4,0.0296613]
[1721026573591,0.59569152,3361.5,3360.2,2.67833]
[1721026573772,0.59569152,3361.5,3359.9,4.67]
[1721026573773,2.67754,3361.3,3360.1,2.67849]
[1721026573977,0.58575267,3361.2,3360.3,0.03005447]
[1721026574229,2.2507,3361.0,3360.2,0.03009022]
[1721026574378,2.2507,3361.0,3360.4,0.03001871]
[1721026574379,0.04569152,3360.9,3360.4,0.03001871]
[1721026574575,0.59569152,3360.9,3360.3,0.03005447]
[1721026574806,0.59569152,3360.9,3360.5,0.02998296]
[1721026575009,0.59569152,3360.9,3360.4,0.03001871]
[1721026575010,0.54523915,3360.8,3360.4,0.03001871]
[1721026575184,0.59569152,3360.7,3360.6,0.02994721]
[1721026575390,0.59569152,3360.7,3360.5,0.02998296]
[1721026575606,5.87970152,3360.7,3360.6,0.02994721]
[1721026575788,5.87970152,3360.7,3358.8,10.02947]
[1721026575789,2.67854,3360.1,3358.8,10.02947]
[1721026575998,2.3864,3359.9,3358.6,4.37966]
[1721026576322,2.3864,3359.9,3358.4,2.97]
[1721026576323,2.67884,3359.7,3358.9,0.03055524]
[1721026576660,2.72462152,3359.6,3358.7,0.03062681]
[1721026576812,2.72462152,3359.6,3358.4,5.64984]
[1721026576813,2.3864,3359.3,3359.0,0.03051945]
[1721026577150,2.3864,3359.3,3358.4,2.97]
[1721026577151,3.27492152,3359.2,3358.4,2.97]
[1721026577363,3.27492152,3359.2,3359.1,0.03061514]
[1721026577507,4.06326715,3359.2,3359.1,0.03061514]
[1721026577709,4.06326715,3359.2,3358.4,2.97]
[1721026577959,3.22923,3359.2,3359.1,0.03061514]
[1721026578251,3.22923,3359.2,3358.4,2.97]
[1721026578252,0.55,3359.2,3358.4,2.97]
[1721026578412,0.59569152,3359.2,3358.4,2.97]
[1721026578613,0.55,3359.2,3358.5,0.03082986]
[1721026579032,0.59569152,3359.2,3358.5,0.03082986]
[1721026579557,0.56612515,3359.1,3358.5,0.03082986]
[1721026579754,0.59569152,3359.0,3358.5,0.03082986]
[1721026580057,3.27506152,3359.0,3358.5,0.03082986]
[1721026580430,3.27506152,3359.0,3358.0,10.0]
[1721026580942,3.27506152,3359.0,3358.1,0.03097305]
[1721026581256,4.16573319,3359.0,3358.1,0.03097305]
[1721026581753,0.55,3359.0,3358.1,2.71098305]
[1721026581958,0.55,3359.0,3358.2,1.7]
[1721026582255,0.59569152,3359.2,3358.2,4.41089725]
[1721026582417,0.55,3359.2,3358.4,2.67981]
[1721026582766,0.55,3359.2,3358.5,0.03082986]
[1721026583565,2.3864,3359.3,3358.5,0.03082986]
[1721026583764,2.4693,3359.7,3358.7,2.67956]
[1721026583939,3.717088,3359.7,3358.7,2.67956]
[1721026584141,3.717088,3359.7,3358.6,1.73079407]
[1721026584142,0.04569152,3359.6,3358.8,0.03072249]
[1721026584369,2.679,3359.5,3358.6,1.7]
[1721026584678,2.679,3359.5,3358.9,0.0306867]
[1721026584863,2.679,3359.5,3358.6,1.7]
[1721026585050,2.679,3359.5,3358.7,0.03075828]
[1721026585256,0.55,3359.4,3358.7,0.03075828]
[1721026585462,1.11983,3359.4,3358.7,0.03075828]
[1721026585793,1.16552152,3359.4,3358.7,0.03075828]
[1721026586083,1.11983,3359.4,3358.7,0.03075828]
[1721026586256,0.55,3359.4,3358.7,0.03075828]
[1721026586452,0.55,3359.4,3358.7,2.71033828]
[1721026586665,0.55,3359.6,3358.7,2.71033828]
[1721026586865,0.04569152,3359.5,3358.7,0.03075828]
[1721026587071,0.84227415,3359.4,3358.7,0.03075828]
[1721026587253,0.59569152,3359.3,3358.3,3.0]
[1721026587450,0.04569152,3359.2,3358.3,3.0]
[1721026587680,0.04569152,3359.2,3358.4,0.03086565]
[1721026588066,5.06459,3359.1,3358.4,0.03086565]
[1721026588262,0.55,3359.0,3358.4,0.03086565]
[1721026588556,0.59569152,3359.0,3358.5,0.03082986]
[1721026588757,0.59569152,3359.0,3358.0,12.68015]
[1721026588983,0.59569152,3359.0,3358.6,0.03079407]
[1721026589186,0.59569152,3359.0,3358.0,12.68015]
[1721026589361,0.59569152,3359.0,3358.1,2.68007]
[1721026589362,0.55,3359.0,3358.1,2.68007]
[1721026589686,0.04569152,3358.9,3358.1,0.03097305]
[1721026589888,0.55,3359.0,3358.1,0.03097305]
[1721026590197,0.55,3359.0,3358.2,4.38]
[1721026590353,2.3853,3359.1,3358.4,2.67978]
[1721026590676,2.3029,3359.8,3358.7,2.67957]
[1721026590872,1.26227991,3359.7,3358.7,2.67957]
[1721026591086,0.04569152,3359.7,3358.6,2.67961]
[1721026591282,0.04569152,3359.7,3358.7,0.03117258]
[1721026591787,2.3029,3359.8,3358.8,2.67952]
[1721026592086,0.55,3359.7,3358.8,2.67952]
[1721026592274,0.55,3359.7,3358.9,0.03110101]
[1721026592588,1.13426691,3359.7,3358.9,0.03110101]
[1721026593304,0.55,3359.7,3358.9,0.03110101]
[1721026593668,2.3029,3359.8,3359.3,2.67907]
[1721026593853,2.4474,3360.3,3359.2,2.67913]
[1721026594055,2.4474,3360.3,3359.5,2.67894]
[1721026594457,2.4474,3360.3,3359.6,0.03079531]
[1721026594658,0.04569152,3360.2,3359.6,0.03079531]
[1721026594870,0.54824254,3360.2,3359.6,0.03079531]
[1721026595088,0.54824254,3360.2,3359.1,2.67927]
[1721026595268,2.4474,3360.3,3359.7,0.03069903]
[1721026595456,2.4474,3360.3,3359.2,3.0]
[1721026595656,0.04569152,3360.2,3359.2,3.0]
[1721026595859,0.55,3360.2,3359.2,3.0]
[1721026596176,0.55,3360.2,3359.3,0.03084212]
[1721026597772,1.14868838,3360.2,3359.3,0.03084212]
[1721026598177,0.04569152,3360.1,3359.3,0.03084212]
[1721026598396,0.59569152,3360.1,3359.3,0.03084212]
[1721026598694,0.55,3360.1,3359.3,0.03084212]
[1721026598894,0.55,3360.1,3359.1,2.6792]
[1721026599067,1.20855422,3360.1,3359.4,0.03081292]
[1721026599266,0.04569152,3360.0,3359.0,7.37935]
[1721026599468,0.59569152,3360.0,3359.5,0.03077715]
[1721026599679,0.59569152,3360.0,3359.0,7.37935]
[1721026600181,0.59569152,3360.0,3359.1,0.03092025]
[1721026600182,2.4241,3359.9,3359.1,0.03092025]
[1721026600381,1.23138309,3359.8,3359.1,0.03092025]
[1721026600690,0.04569152,3359.7,3359.1,0.03092025]
[1721026600867,0.04569152,3359.7,3358.7,5.6496]
[1721026601272,0.04569152,3359.7,3358.8,2.7105476]
[1721026602116,0.04569152,3359.6,3358.8,0.0310276]
[1721026602286,0.94698483,3359.6,3358.8,0.0310276]
[1721026602487,0.55,3359.5,3358.8,0.0310276]
[1721026603813,0.04569152,3359.4,3358.8,0.0310276]
[1721026604010,2.51799152,3359.4,3358.8,0.0310276]
[1721026604220,0.55,3359.3,3358.8,0.0310276]
[1721026604391,0.04569152,3359.2,3358.8,0.0310276]
[1721026605313,1.26982348,3359.3,3358.8,0.0310276]
[1721026605314,0.55,3359.3,3358.8,0.0310276]
[1721026606002,0.04569152,3359.2,3358.8,0.0310276]
[1721026606825,0.55,3359.3,3358.8,0.0310276]
[1721026607045,1.07625661,3359.2,3358.8,0.0310276]
[1721026607207,0.95985566,3359.1,3358.8,0.0310276]
[1721026607409,0.04569152,3359.0,3358.8,0.0310276]
[1721026607718,1.00554718,3359.1,3358.9,0.03103258]
[1721026607937,1.00554718,3359.1,3358.3,3.0]
[1721026608126,1.00554718,3359.1,3358.4,0.03121153]
[1721026608498,0.36846772,3359.0,3358.4,0.03121153]
[1721026608697,0.59569152,3358.9,3358.2,2.67998]
[1721026608894,0.59569152,3358.9,3358.3,0.03124732]
[1721026609140,0.59569152,3359.0,3358.3,2.71116732]
[1721026609350,0.55,3359.0,3358.3,2.71116732]
[1721026609651,0.04569152,3359.3,3358.3,2.71116732]
[1721026609652,0.59569152,3359.3,3358.3,2.71116732]
[1721026609854,1.5595411,3359.3,3358.3,2.71116732]
[1721026609999,1.03060434,3359.2,3358.3,2.71116732]
[1721026610203,1.58060434,3359.1,3358.3,2.71116732]
[1721026610441,1.03059323,3359.0,3358.3,2.71116732]
[1721026610648,1.51384958,3359.3,3358.3,2.71116732]
[1721026610809,1.77396325,3359.2,3358.3,0.03124732]
[1721026611005,1.58062567,3359.1,3358.3,0.03124732]
[1721026611307,1.07631719,3359.0,3358.3,0.03124732]
[1721026611506,1.58062567,3358.9,3358.1,2.68007]
[1721026611753,0.04569152,3358.8,3358.2,0.03131865]
[1721026611909,2.3152,3358.7,3358.2,0.03131865]
[1721026612110,0.59569152,3358.6,3358.2,2.71131865]
[1721026612511,0.55,3358.6,3358.2,2.71131865]
[1721026612917,0.59569152,3358.6,3358.2,0.03131865]
[1721026613228,0.59569152,3358.6,3358.0,10.0]
[1721026613715,0.59569152,3358.6,3358.1,0.03145182]
[1721026613916,0.59569152,3358.6,3358.0,10.0]
[1721026614112,0.59569152,3358.6,3358.1,0.03145182]
[1721026614330,0.59569152,3358.6,3358.0,10.0]
[1721026614557,1.15473367,3358.6,3358.1,0.03147287]
[1721026614738,1.03078058,3358.5,3358.0,10.0]
[1721026614945,0.59569152,3358.4,3358.0,10.0]
[1721026615143,0.59569152,3358.4,3358.1,0.03147287]
[1721026615345,0.59569152,3358.4,3358.0,10.0]
[1721026615634,1.67496087,3358.3,3358.1,0.03147287]
[1721026615858,5.59089152,3358.2,3358.1,0.03147287]
[1721026616073,2.68008,3358.1,3358.0,10.0]
[1721026616333,7.56273029,3358.1,3358.0,10.0]
[1721026616562,7.56320918,3358.1,3358.0,10.0]
[1721026616780,8.96939251,3358.1,3358.0,10.0]
[1721026617836,10.62719779,3358.1,3358.0,10.0]
[1721026618035,11.55947153,3358.1,3358.0,10.0]
[1721026618271,10.62719779,3358.1,3358.0,10.0]
[1721026618435,11.55947153,3358.1,3358.0,10.0]
[1721026618841,10.62719779,3358.1,3358.0,10.0]
[1721026619184,11.55947153,3358.1,3358.0,10.0]
[1721026619382,9.59614333,3358.1,3358.0,10.0]
[1721026619540,10.6272686,3358.1,3358.0,10.0]
[1721026620533,11.5609459,3358.1,3358.0,10.0]
[1721026621391,10.6272686,3358.1,3358.0,10.0]
[1721026621759,11.56105273,3358.1,3358.0,10.0]
[1721026621962,10.21863511,3358.1,3358.0,10.0]
[1721026622191,10.62723249,3358.1,3358.0,10.0]
[1721026622385,10.21843357,3358.1,3358.0,10.0]
[1721026622762,10.62720997,3358.1,3358.0,10.0]
[1721026622969,10.21845116,3358.1,3358.0,10.0]
[1721026623490,10.62723959,3358.1,3358.0,10.0]
[1721026623866,11.56102372,3358.1,3358.0,10.0]
[1721026624391,10.62723959,3358.1,3358.0,10.0]
[1721026624761,10.93860178,3358.1,3358.0,10.0]
[1721026625187,11.87238591,3358.1,3358.0,10.0]
[1721026625351,7.84929439,3358.1,3358.0,10.0]
[1721026625550,7.22742552,3358.1,3358.0,10.0]
[1721026626292,9.90750552,3358.1,3358.0,10.0]
[1721026627091,10.93859085,3358.1,3358.0,10.0]
[1721026627484,10.93859376,3358.1,3358.0,10.0]
[1721026628540,9.90750552,3358.1,3358.0,10.0]
[1721026629281,10.93855026,3358.1,3358.0,10.0]
[1721026629887,8.25847685,3358.1,3358.0,10.0]
[1721026630084,7.22742552,3358.1,3358.0,10.0]
[1721026630395,0.86136219,3358.1,3358.0,10.0]
[1721026630587,0.86136219,3358.1,3358.0,10.03182862]
[1721026630789,3.54144219,3358.1,3358.0,10.03182862]
[1721026631032,0.86136219,3358.1,3358.0,10.03182862]
[1721026631683,0.31136219,3358.1,3358.0,10.03182862]
[1721026631904,2.2906,3358.6,3358.0,10.03182862]
[1721026632640,5.14029,3359.0,3358.0,10.03182862]
[1721026632845,1.87940242,3358.9,3358.0,10.03182862]
[1721026633004,0.84865406,3358.9,3358.0,10.03182862]
[1721026633510,1.58074644,3358.8,3358.0,10.03182862]
[1721026633715,2.6797,3358.6,3358.0,10.03182862]
[1721026633907,0.55,3358.5,3358.0,10.03182862]
[1721026634110,0.32753915,3358.4,3358.0,10.03182862]
[1721026634322,0.55,3358.3,3358.0,10.03182862]
[1721026634763,2.4162,3358.2,3358.0,10.03182862]
[1721026635045,0.55,3358.1,3358.0,10.0]
[1721026635401,0.55,3358.2,3358.0,10.03175225]
[1721026635743,0.90574791,3358.2,3358.0,10.03175225]
[1721026639070,1.03088365,3358.1,3358.0,10.0]
[1721026639384,1.58088365,3358.1,3358.0,10.03071761]
[1721026639556,6.94104365,3358.1,3358.0,10.03071761]
[1721026639765,11.97474365,3358.1,3358.0,10.0]
[1721026639937,13.62822507,3358.1,3358.0,10.0]
[1721026640144,14.24950999,3358.1,3358.0,10.03071761]
[1721026640341,19.30830507,3358.1,3358.0,10.03071761]
[1721026640575,20.23988989,3358.1,3358.0,10.03071761]
[1721026640772,20.24045776,3358.1,3358.0,10.0]
[1721026640942,18.27742142,3358.1,3358.0,10.02976761]
[1721026641145,19.30856947,3358.1,3358.0,10.02976761]
[1721026641471,19.30856947,3358.1,3358.0,10.0]
[1721026641892,16.62848947,3358.1,3358.0,10.02976761]
[1721026642996,6.13792805,3358.1,3358.0,10.02976761]
[1721026643144,2.68008,3358.1,3358.0,10.02976761]
[1721026643344,2.68008,3358.1,3358.0,10.0]
[1721026643545,1.55354079,3358.2,3358.0,10.02976761]
[1721026644480,0.55,3358.1,3358.0,10.02976761]
[1721026644655,1.36111299,3358.1,3358.0,10.02976761]
[1721026644856,4.04119299,3358.1,3358.0,10.02976761]
[1721026645089,9.04497299,3358.1,3358.0,10.02976761]
[1721026645273,6.36489299,3358.1,3358.0,10.02976761]
[1721026645780,1.03094424,3358.1,3358.0,10.02976761]
[1721026646486,1.55354079,3358.2,3358.0,10.02976761]
[1721026647510,1.55354079,3358.2,3358.1,2.68008]
[1721026647663,1.55354079,3358.2,3358.0,10.02976761]
[1721026647867,1.55354079,3358.2,3358.1,0.02973181]
[1721026648187,1.55354079,3358.2,3358.0,10.0]
[1721026648394,0.99953788,3358.2,3358.1,5.09894338]
[1721026648608,1.86424895,3358.5,3358.4,7.05968]
[1721026648767,1.86424895,3358.5,3358.4,7.08919781]
[1721026649270,1.86424895,3358.5,3358.4,12.76903781]
[1721026650403,1.86424895,3358.5,3358.4,15.15823781]
[1721026650804,0.2981,3360.3,3359.5,2.67897]
[1721026651100,0.04569152,3360.2,3359.5,0.0290018]
[1721026651468,0.2981,3360.3,3359.3,2.67906]
[1721026651764,2.67834,3360.3,3359.4,0.02899679]
[1721026651996,0.04569152,3359.5,3358.5,1.7]
[1721026652202,0.59569152,3359.5,3358.6,0.02928305]
[1721026652395,0.55,3359.5,3358.4,2.67981]
[1721026652602,0.55,3359.5,3358.5,0.02934778]
[1721026653122,2.72475152,3359.4,3358.5,0.02934778]
[1721026653323,0.04569152,3359.4,3358.5,0.02934778]
[1721026653532,0.59569152,3359.4,3358.3,5.64989]
[1721026653851,0.59569152,3359.4,3358.4,2.70922489]
[1721026654543,0.59569152,3359.4,3358.4,0.02938489]
[1721026654702,1.31772825,3359.4,3358.4,0.02938489]
[1721026655643,1.27203673,3359.4,3358.4,2.70922489]
[1721026656159,0.27203673,3359.4,3358.4,2.70922489]
[1721026657366,2.349,3359.2,3358.4,0.02938489]
[1721026657567,2.349,3359.2,3358.4,2.70922489]
[1721026657711,0.62201491,3359.5,3358.4,2.70922489]
[1721026657911,0.62201491,3359.5,3358.7,2.67957]
[1721026658206,3.29872237,3359.6,3358.8,0.02926955]
[1721026658207,2.3657,3359.6,3358.8,0.02926955]
[1721026658409,0.55,3359.5,3358.8,0.02926955]
[1721026658644,0.55,3359.5,3358.5,2.67973]
[1721026659308,0.55,3359.5,3358.6,0.02934113]
[1721026660515,1.17190382,3359.5,3358.6,0.02934113]
[1721026660935,0.04569152,3359.4,3358.6,0.02934113]
[1721026661134,0.35832953,3359.3,3358.6,0.02934113]
[1721026661358,0.55,3359.2,3358.3,5.64991]
[1721026661815,0.55,3359.4,3358.4,0.02933767]
[1721026662035,0.04569152,3359.3,3358.4,0.02933767]
[1721026662334,3.27482152,3359.3,3358.4,0.02933767]
[1721026662969,0.55,3359.3,3358.4,0.02933767]
[1721026663171,0.55,3359.4,3358.4,0.02933767]
[1721026663376,0.55,3359.4,3358.5,2.67973]
[1721026663582,0.55,3359.5,3358.5,2.67973]
[1721026663743,0.55,3359.5,3358.6,0.02926609]
[1721026664373,0.04569152,3359.4,3358.6,2.70891609]
[1721026664577,1.17172186,3359.5,3358.7,2.67959]
[1721026664783,0.04569152,3359.4,3358.7,2.67959]
[1721026664980,0.04569152,3359.4,3358.8,0.02919451]
[1721026665169,0.55,3359.5,3358.8,0.02919451]
[1721026665371,1.17172186,3359.5,3358.8,0.02919451]
[1721026666087,0.04569152,3359.4,3358.8,0.02919451]
[1721026666247,1.17172186,3359.5,3358.7,2.67959]
[1721026666451,1.17172186,3359.5,3358.9,0.02915872]
[1721026666662,1.17172186,3359.5,3358.8,0.02919451]
[1721026666864,1.17172186,3359.5,3359.0,0.02912294]
[1721026667083,1.17172186,3359.5,3358.9,0.02915872]
[1721026667278,1.17172186,3359.5,3359.1,0.02908716]
[1721026667483,0.04569152,3359.4,3359.0,0.02912294]
[1721026667685,0.04569152,3359.4,3359.2,0.02905138]
[1721026667686,0.66741338,3359.4,3359.2,0.02905138]
[1721026668012,2.4818,3359.2,3358.3,2.97]
[1721026668184,2.4818,3359.2,3358.4,0.02932451]
[1721026668371,0.55,3359.1,3358.4,0.02932451]
[1721026668904,1.17194188,3359.1,3358.4,0.02932451]
[1721026669091,0.62194188,3359.0,3358.4,0.02932451]
[1721026669409,0.55,3358.9,3358.4,0.02932451]
[1721026670110,0.55,3358.9,3358.0,10.0]
[1721026670111,1.03068742,3358.8,3358.0,10.0]
[1721026670312,0.55,3358.9,3358.5,0.03039859]
[1721026670607,1.03060501,3358.8,3358.3,2.67991]
[1721026670905,1.58060501,3358.7,3358.0,10.0]
[1721026671112,0.55,3358.7,3358.4,0.03049476]
[1721026671307,0.55,3359.0,3358.2,2.67998]
[1721026671494,1.03062097,3358.9,3358.5,0.03045641]
[1721026671825,0.55,3358.8,3358.6,0.03041383]
[1721026672108,0.55,3359.0,3358.2,2.67998]
[1721026672109,1.03064376,3358.7,3358.2,2.67998]
[1721026672318,0.55,3359.0,3358.2,2.67998]
[1721026672484,1.03062094,3358.9,3358.2,2.67998]
[1721026672689,1.58062094,3358.8,3358.2,2.67998]
[1721026672891,0.55,3359.0,3358.2,2.67998]
[1721026672892,1.03062094,3358.7,3358.2,2.67998]
[1721026673099,0.55,3358.7,3358.2,2.67998]
[1721026673475,0.55,3358.9,3358.2,2.67998]
[1721026673699,1.03064053,3358.8,3358.2,2.67998]
[1721026673883,1.58064053,3358.7,3358.2,2.67998]
[1721026674082,0.55,3358.9,3358.2,2.36698]
[1721026674300,1.03065176,3358.8,3358.2,2.36698]
[1721026674470,1.58065176,3358.7,3358.2,2.36698]
[1721026674678,0.55,3358.7,3358.1,2.68005]
[1721026674876,1.03068924,3358.6,3358.1,2.68005]
[1721026675233,5.49914188,3358.4,3358.0,10.0]
[1721026675378,0.6676334,3358.3,3358.2,0.03763116]
[1721026675576,1.07648311,3358.3,3358.0,10.0]
[1721026675777,3.61490476,3358.1,3358.0,10.0]
[1721026676003,5.19569635,3358.1,3358.0,10.0]
[1721026676387,4.26087159,3358.1,3358.0,10.0]
[1721026676815,5.19562706,3358.1,3358.0,10.0]
[1721026677084,1.58079159,3358.1,3358.0,10.0]
[1721026677247,1.65389986,3358.1,3358.0,10.0]
[1721026677392,1.65389986,3358.1,3358.0,10.04010668]
[1721026677822,2.03713235,3358.1,3358.0,10.04010668]
[1721026678005,2.34872753,3358.1,3358.0,10.04010668]
[1721026678219,0.38320723,3358.1,3358.0,10.0]
[1721026678424,4.09430177,3358.1,3358.0,10.04010668]
[1721026678636,5.57903039,3358.1,3358.0,10.04010668]
[1721026678797,1.65404358,3358.1,3358.0,10.04010668]
[1721026678992,0.62302904,3358.3,3358.0,10.04010668]
[1721026679807,0.62302904,3358.6,3358.0,10.04010668]
[1721026680942,0.62302904,3358.7,3358.0,12.72025668]
[1721026681154,0.62302904,3358.9,3358.2,2.67995]
[1721026681331,0.62302904,3358.9,3358.0,12.72025668]
[1721026681332,1.65376047,3358.8,3358.0,10.04010668]
[1721026681510,1.65376047,3358.8,3358.3,0.04438398]
[1721026681511,0.62302904,3358.8,3358.3,0.04438398]
[1721026681706,1.07643887,3358.7,3358.0,10.0]
[1721026681907,1.45562159,3358.7,3358.4,0.03996871]
[1721026682209,0.83259255,3358.7,3358.0,10.0]
[1721026682406,0.83259255,3358.7,3358.1,0.04458867]
[1721026682603,0.55,3358.6,3358.1,0.04458867]
[1721026682820,0.55,3358.6,3358.0,10.0]
[1721026683026,0.55,3358.6,3358.1,0.0401298]
[1721026683232,0.62302904,3358.8,3358.0,10.0]
[1721026683456,0.62302904,3358.9,3358.2,2.67999]
[1721026683615,0.62302904,3358.9,3358.1,0.0401298]
[1721026683616,0.62302904,3358.9,3358.3,0.0400224]
[1721026683818,0.62302904,3358.9,3358.1,2.68008]
[1721026684029,0.62302904,3358.9,3358.2,0.044529]
[1721026684953,1.65374095,3358.8,3358.2,0.044529]
[1721026685148,1.17302904,3358.8,3358.2,0.044529]
[1721026685307,0.55,3358.8,3358.2,0.044529]
[1721026685512,0.62302904,3358.8,3358.2,0.044529]
[1721026685817,0.55,3358.7,3358.2,0.044529]
[1721026686143,0.55,3358.7,3358.0,12.68016]
[1721026686354,0.62302904,3358.7,3358.3,0.04003226]
[1721026686661,0.62302904,3358.7,3358.4,0.03997856]
[1721026687011,0.62302904,3358.7,3358.0,10.0]
[1721026687351,1.48472862,3358.8,3358.3,2.67991]
[1721026687352,1.17302904,3358.8,3358.3,2.67991]
[1721026687660,1.17302904,3358.8,3358.0,10.0]
[1721026687661,0.62302904,3358.9,3358.4,0.03997856]
[1721026687811,0.62302904,3358.6,3358.0,10.0]
[1721026688009,0.62302904,3358.6,3358.1,0.04460398]
[1721026688010,0.62302904,3358.4,3358.1,0.04460398]
[1721026688250,1.17302904,3358.5,3358.0,10.0]
[1721026688451,1.17302904,3358.5,3358.1,0.04460398]
[1721026688754,0.62302904,3358.4,3358.0,10.0]
[1721026688957,1.17302904,3358.5,3358.2,0.04454431]
[1721026689112,1.17302904,3358.5,3358.1,0.04460398]
[1721026689311,1.17302904,3358.5,3358.3,0.04448465]
[1721026689571,2.00355343,3358.5,3358.2,0.04454431]
[1721026689747,0.62302904,3358.3,3358.0,10.0]
[1721026690252,0.62302904,3358.2,3358.1,0.04460398]
[1721026690475,1.38052439,3358.5,3358.0,10.0]
[1721026690608,0.62376495,3358.3,3358.1,0.04460398]
[1721026690957,0.62376495,3358.3,3358.0,10.0]
[1721026691110,0.62376495,3358.3,3358.2,0.04454431]
[1721026691312,0.62376495,3358.6,3358.1,2.72461398]
[1721026691648,0.62376495,3358.8,3358.3,2.67991]
[1721026691847,0.62376495,3358.9,3358.4,0.04442499]
[1721026692614,1.65437559,3358.8,3358.4,0.04442499]
[1721026692855,0.62376495,3358.7,3358.2,2.67993]
[1721026693149,0.62376495,3358.7,3358.3,0.04448465]
[1721026693512,0.62376495,3358.7,3358.0,12.83011]
[1721026693744,0.62376495,3358.6,3358.4,0.04442499]
[1721026693909,0.62376495,3358.7,3358.1,2.68007]
[1721026694118,4.97199,3359.1,3358.5,0.04436533]
[1721026694320,0.62371754,3358.7,3358.3,2.67991]
[1721026694845,0.93557632,3358.9,3358.4,0.04442499]
[1721026694846,0.62371754,3358.8,3358.4,0.04442499]
[1721026696279,0.62371754,3358.6,3358.4,0.04442499]
[1721026696453,0.62371754,3358.5,3358.4,0.04442499]
[1721026696651,1.17371754,3358.5,3358.0,12.8301]
[1721026696970,0.62371754,3358.5,3358.1,0.04457553]
[1721026697264,0.62371754,3358.5,3358.0,10.15]
[1721026697569,0.62371754,3358.4,3358.2,0.04451586]
[1721026697766,0.62371754,3358.4,3358.1,0.04457553]
[1721026698067,0.62371754,3358.4,3358.2,0.04451586]
[1721026698572,0.62371754,3358.4,3358.0,10.15]
[1721026699085,0.62371754,3358.4,3358.1,0.04457553]
[1721026699236,0.04569152,3358.5,3358.1,0.04457553]
[1721026699237,0.62371754,3358.3,3358.1,0.04457553]
[1721026699434,0.62371754,3358.3,3358.0,10.15]
[1721026699637,0.62371754,3358.3,3358.1,0.04457553]
[1721026699862,0.62371754,3358.3,3358.0,10.15]
[1721026700167,0.62371754,3358.3,3358.1,0.04457553]
[1721026700590,0.04569152,3358.2,3358.0,10.15]
[1721026700883,1.96647716,3358.1,3358.0,10.15]
[1721026701185,1.03090084,3358.1,3358.0,10.15]
[1721026701372,2.82833593,3358.1,3358.0,10.15]
[1721026701550,1.58090084,3358.1,3358.0,10.15]
[1721026701935,3.79975915,3358.1,3358.0,10.15]
[1721026703453,3.79982658,3358.1,3358.0,10.15]
[1721026704270,2.55239149,3358.1,3358.0,10.15]
[1721026704463,6.47990658,3358.1,3358.0,10.15]
[1721026704780,3.80086224,3358.1,3358.0,10.15]
[1721026705088,6.48094224,3358.1,3358.0,10.15]
[1721026705288,6.79328394,3358.1,3358.0,10.15]
[1721026705468,5.23247149,3358.1,3358.0,10.15]
[1721026705892,6.79328394,3358.1,3358.0,10.15]
[1721026706597,4.20150322,3358.1,3358.0,10.15]
[1721026706757,6.79292125,3358.1,3358.0,10.15]
[1721026706954,6.79292719,3358.1,3358.0,10.15]
[1721026707155,6.79292707,3358.1,3358.0,10.15]
[1721026707460,5.23250489,3358.1,3358.0,10.15]
[1721026707661,6.79292707,3358.1,3358.0,10.15]
[1721026708389,9.47300707,3358.1,3358.0,10.15]
[1721026709658,9.47274716,3358.1,3358.0,10.15]
[1721026709868,6.88158322,3358.1,3358.0,10.15]
[1721026710059,9.47275143,3358.1,3358.0,10.15]
[1721026711165,7.91260879,3358.1,3358.0,10.15]
[1721026711560,9.47275143,3358.1,3358.0,10.15]
[1721026712000,7.91260879,3358.1,3358.0,10.15]
[1721026713396,7.91258912,3358.1,3358.0,10.15]
[1721026714666,9.4726297,3358.1,3358.0,10.15]
[1721026716093,10.52058912,3358.1,3358.0,10.15]
[1721026716699,10.52068029,3358.1,3358.0,10.15]
[1721026717200,10.52068967,3358.1,3358.0,10.15]
[1721026719709,15.67093948,3358.1,3358.0,9.10303344]
[1721026719907,15.67093948,3358.1,3356.4,0.1184883]
[1721026719908,2.68097,3357.0,3356.4,0.1184883]
[1721026720109,0.66965444,3356.9,3356.4,0.1184883]
[1721026721012,0.62383608,3356.8,3356.4,0.1184883]
[1721026721378,3.3505776,3356.9,3356.4,0.1184883]
[1721026722279,2.72674152,3356.9,3356.4,0.1184883]
[1721026722713,2.68105,3356.9,3356.4,0.1184883]
[1721026723213,0.62383608,3357.0,3356.4,0.1184883]
[1721026723515,0.55,3356.9,3356.4,0.1184883]
[1721026723881,3.23098,3357.0,3356.4,0.1184883]
[1721026725314,0.62383608,3357.2,3356.9,1.7]
[1721026725518,0.62383608,3357.8,3357.0,1.87]
[1721026725721,0.62383608,3357.8,3356.6,5.68126]
[1721026725722,2.68048,3357.6,3356.6,5.68126]
[1721026726724,5.70372608,3357.5,3356.5,2.3892]
[1721026727018,2.68081,3357.2,3356.5,2.3892]